[Event "Late-Titled-Tuesday-Blitz-September-26-2023"]
[Site "Chess.com"]
[Date "2023.09.26"]
[Round "8"]
[White "rikchessmx"]
[Black "PawnEatingZombie"]
[Result "1-0"]
[WhiteElo "2361"]
[BlackElo "2153"]
[TimeControl "180+1"]
[EndTime "15:21:47 PDT"]
[Termination "rikchessmx won by resignation"]

1. e4 {[%clk 0:02:59.6]} 1... Nf6 {[%clk 0:02:59.2]} 2. e5 {[%clk 0:02:58.4]}
2... Nd5 {[%clk 0:02:58.2]} 3. d4 {[%clk 0:02:59.3]} 3... d6 {[%clk 0:02:58.1]}
4. c4 {[%clk 0:02:59.9]} 4... Nb6 {[%clk 0:02:57.2]} 5. exd6 {[%clk 0:03:00.8]}
5... cxd6 {[%clk 0:02:57]} 6. Nc3 {[%clk 0:03:01.2]} 6... g6 {[%clk 0:02:57.3]}
7. Be3 {[%clk 0:03:00.8]} 7... Bg7 {[%clk 0:02:57.8]} 8. h3 {[%clk 0:03:01.4]}
8... O-O {[%clk 0:02:56.3]} 9. Nf3 {[%clk 0:03:02]} 9... Nc6 {[%clk 0:02:56.3]}
10. Be2 {[%clk 0:03:01.9]} 10... Bf5 {[%clk 0:02:55.6]} 11. O-O {[%clk
0:03:01.7]} 11... e5 {[%clk 0:02:23.9]} 12. d5 {[%clk 0:03:00.4]} 12... Ne7
{[%clk 0:02:11]} 13. Qd2 {[%clk 0:02:43.7]} 13... Rc8 {[%clk 0:02:05.3]} 14. b3
{[%clk 0:02:43.7]} 14... Bd7 {[%clk 0:01:14]} 15. Bg5 {[%clk 0:02:39]} 15... f6
{[%clk 0:01:13.7]} 16. Bh6 {[%clk 0:02:39.1]} 16... a5 {[%clk 0:01:07.3]} 17. a4
{[%clk 0:02:37.1]} 17... Be8 {[%clk 0:01:02.8]} 18. Bxg7 {[%clk 0:02:36.9]}
18... Kxg7 {[%clk 0:01:02.5]} 19. Nb5 {[%clk 0:02:37.1]} 19... Bxb5 {[%clk
0:01:00.9]} 20. axb5 {[%clk 0:02:36.7]} 20... Ra8 {[%clk 0:01:00.4]} 21. Ra2
{[%clk 0:02:27.1]} 21... Nd7 {[%clk 0:01:00.3]} 22. Rfa1 {[%clk 0:02:24.9]}
22... Nc5 {[%clk 0:00:46.7]} 23. Bd1 {[%clk 0:02:23.7]} 23... e4 {[%clk
0:00:37.1]} 24. Nd4 {[%clk 0:02:21.3]} 1-0

[Event "Late-Titled-Tuesday-Blitz-September-26-2023"]
[Site "Chess.com"]
[Date "2023.09.26"]
[Round "8"]
[White "KamlaPasand"]
[Black "Orest_Vovk"]
[Result "0-1"]
[WhiteElo "2435"]
[BlackElo "2582"]
[TimeControl "180+1"]
[EndTime "15:22:05 PDT"]
[Termination "Orest_Vovk won by resignation"]

1. e4 {[%clk 0:02:58.4]} 1... g5 {[%clk 0:02:59.9]} 2. d4 {[%clk 0:02:57.3]}
2... g4 {[%clk 0:02:59]} 3. Qxg4 {[%clk 0:02:55.5]} 3... d5 {[%clk 0:02:59.3]}
4. Qe2 {[%clk 0:02:50.2]} 4... dxe4 {[%clk 0:02:59.8]} 5. Qxe4 {[%clk
0:02:49.8]} 5... Nf6 {[%clk 0:03:00.4]} 6. Qd3 {[%clk 0:02:50.2]} 6... Nc6
{[%clk 0:03:00.7]} 7. c3 {[%clk 0:02:49.7]} 7... Qd5 {[%clk 0:02:59.2]} 8. Nf3
{[%clk 0:02:48.5]} 8... Bg4 {[%clk 0:02:59]} 9. Be2 {[%clk 0:02:47.8]} 9...
O-O-O {[%clk 0:02:59.3]} 10. Be3 {[%clk 0:02:43.7]} 10... e5 {[%clk 0:02:56.3]}
11. c4 {[%clk 0:02:41.5]} 11... Qa5+ {[%clk 0:02:46.1]} 12. Bd2 {[%clk
0:02:41.6]} 12... e4 {[%clk 0:02:44.6]} 13. Qe3 {[%clk 0:02:36.4]} 13... Nb4
{[%clk 0:02:38.8]} 14. Bxb4 {[%clk 0:02:34.7]} 14... Bxb4+ {[%clk 0:02:35]} 15.
Nfd2 {[%clk 0:02:35.4]} 15... Bxe2 {[%clk 0:02:33.2]} 16. Kxe2 {[%clk 0:02:34]}
16... Ng4 {[%clk 0:02:23.9]} 17. Qf4 {[%clk 0:02:33.5]} 17... Qh5 {[%clk
0:01:59.2]} 18. h3 {[%clk 0:02:19.7]} 18... f5 {[%clk 0:01:28.7]} 19. hxg4
{[%clk 0:02:04]} 19... Qxh1 {[%clk 0:01:27.3]} 20. Qxf5+ {[%clk 0:02:02.3]}
20... Kb8 {[%clk 0:01:26.6]} 21. Nxe4 {[%clk 0:02:00.5]} 21... Rxd4 {[%clk
0:01:21.7]} 22. a3 {[%clk 0:01:45]} 22... Qd1+ {[%clk 0:01:18.4]} 23. Ke3 {[%clk
0:01:44.6]} 23... Qd3+ {[%clk 0:01:16.6]} 24. Kf4 {[%clk 0:01:44.5]} 24... Rxe4+
{[%clk 0:01:16.6]} 25. Qxe4 {[%clk 0:01:42.7]} 25... Bd6+ {[%clk 0:01:16]} 26.
Kf5 {[%clk 0:01:41.4]} 26... Rf8+ {[%clk 0:01:15.6]} 27. Kg5 {[%clk 0:01:41.8]}
27... Qxe4 {[%clk 0:01:15.6]} 0-1

[Event "Late-Titled-Tuesday-Blitz-September-26-2023"]
[Site "Chess.com"]
[Date "2023.09.26"]
[Round "8"]
[White "ErikRonka"]
[Black "Roedor"]
[Result "0-1"]
[WhiteElo "2482"]
[BlackElo "2392"]
[TimeControl "180+1"]
[EndTime "15:22:52 PDT"]
[Termination "Roedor won by resignation"]

1. e4 {[%clk 0:02:58.7]} 1... e5 {[%clk 0:02:54.4]} 2. Nc3 {[%clk 0:02:56.8]}
2... Nf6 {[%clk 0:02:54.2]} 3. Bc4 {[%clk 0:02:57.3]} 3... Nc6 {[%clk
0:02:53.9]} 4. d3 {[%clk 0:02:57.1]} 4... Na5 {[%clk 0:02:50.3]} 5. Bb3 {[%clk
0:02:55.3]} 5... Bb4 {[%clk 0:02:43.9]} 6. Ne2 {[%clk 0:02:52.9]} 6... Nxb3
{[%clk 0:02:43.3]} 7. axb3 {[%clk 0:02:50.4]} 7... O-O {[%clk 0:02:43.7]} 8. Bg5
{[%clk 0:02:48.9]} 8... h6 {[%clk 0:02:43.5]} 9. Bh4 {[%clk 0:02:48.1]} 9... Be7
{[%clk 0:02:43.8]} 10. O-O {[%clk 0:02:47.5]} 10... d6 {[%clk 0:02:35.1]} 11. f3
{[%clk 0:02:37.2]} 11... Nh5 {[%clk 0:02:33]} 12. Bf2 {[%clk 0:02:32.9]} 12...
a6 {[%clk 0:02:16.4]} 13. b4 {[%clk 0:02:26.1]} 13... Be6 {[%clk 0:02:10.2]} 14.
Qd2 {[%clk 0:02:23.9]} 14... Bg5 {[%clk 0:02:07.6]} 15. Be3 {[%clk 0:02:23.3]}
15... Bxe3+ {[%clk 0:02:06.6]} 16. Qxe3 {[%clk 0:02:24.2]} 16... Qg5 {[%clk
0:02:05.4]} 17. f4 {[%clk 0:02:21.6]} 17... exf4 {[%clk 0:02:04.9]} 18. Nxf4
{[%clk 0:02:22.5]} 18... Nxf4 {[%clk 0:02:05]} 19. Rxf4 {[%clk 0:02:23.4]} 19...
Rae8 {[%clk 0:02:03]} 20. Raf1 {[%clk 0:02:22.3]} 20... f5 {[%clk 0:01:57.5]}
21. Qd4 {[%clk 0:02:19.6]} 21... fxe4 {[%clk 0:01:49.8]} 22. Rxf8+ {[%clk
0:02:18]} 22... Rxf8 {[%clk 0:01:50.7]} 23. Rxf8+ {[%clk 0:02:18.4]} 23... Kxf8
{[%clk 0:01:50.8]} 24. Qxe4 {[%clk 0:02:18.5]} 24... Qc1+ {[%clk 0:01:47.8]} 25.
Kf2 {[%clk 0:02:14.7]} 25... Qxc2+ {[%clk 0:01:47.1]} 26. Kg3 {[%clk 0:02:14.3]}
26... Qxb2 {[%clk 0:01:40.9]} 27. Qf4+ {[%clk 0:02:02]} 27... Ke7 {[%clk
0:01:36.5]} 28. Qd4 {[%clk 0:02:00.8]} 28... Kf8 {[%clk 0:01:21.7]} 29. Qf4+
{[%clk 0:02:00.7]} 29... Bf7 {[%clk 0:01:12.7]} 30. Qd4 {[%clk 0:01:33.5]} 30...
b6 {[%clk 0:01:08.7]} 31. h4 {[%clk 0:01:30.3]} 31... a5 {[%clk 0:01:07.7]} 32.
bxa5 {[%clk 0:01:31.2]} 32... bxa5 {[%clk 0:01:08.6]} 0-1

[Event "Late-Titled-Tuesday-Blitz-September-26-2023"]
[Site "Chess.com"]
[Date "2023.09.26"]
[Round "8"]
[White "stregachess"]
[Black "glebus008"]
[Result "1-0"]
[WhiteElo "2101"]
[BlackElo "2245"]
[TimeControl "180+1"]
[EndTime "15:23:37 PDT"]
[Termination "stregachess won on time"]

1. d4 {[%clk 0:03:00.9]} 1... d5 {[%clk 0:01:01.4]} 2. Nf3 {[%clk 0:02:59.6]}
2... Nf6 {[%clk 0:01:01]} 3. Bf4 {[%clk 0:02:58.7]} 3... c5 {[%clk 0:01:00.6]}
4. c3 {[%clk 0:02:58]} 4... Nc6 {[%clk 0:01:00.7]} 5. e3 {[%clk 0:02:57.6]} 5...
Qb6 {[%clk 0:00:59.7]} 6. b3 {[%clk 0:02:55.6]} 6... cxd4 {[%clk 0:00:59.1]} 7.
exd4 {[%clk 0:02:55.4]} 7... Bg4 {[%clk 0:00:57]} 8. Be2 {[%clk 0:02:55]} 8...
e6 {[%clk 0:00:57.6]} 9. O-O {[%clk 0:02:54.3]} 9... Qd8 {[%clk 0:00:56.9]} 10.
Ne5 {[%clk 0:02:51.7]} 10... Bxe2 {[%clk 0:00:53.6]} 11. Qxe2 {[%clk 0:02:51.5]}
11... Nxe5 {[%clk 0:00:54.5]} 12. Bxe5 {[%clk 0:02:50.9]} 12... Bd6 {[%clk
0:00:53.8]} 13. Nd2 {[%clk 0:02:47.5]} 13... Bxe5 {[%clk 0:00:52.6]} 14. Qxe5
{[%clk 0:02:47.4]} 14... O-O {[%clk 0:00:52]} 15. Rac1 {[%clk 0:02:44.9]} 15...
Rc8 {[%clk 0:00:51.2]} 16. Rc2 {[%clk 0:02:26.6]} 16... Rc6 {[%clk 0:00:51]} 17.
Rfc1 {[%clk 0:02:26.1]} 17... Qc7 {[%clk 0:00:50.7]} 18. Qe3 {[%clk 0:02:08.4]}
18... Rc8 {[%clk 0:00:49.1]} 19. h3 {[%clk 0:02:07.2]} 19... b5 {[%clk 0:00:48]}
20. f3 {[%clk 0:02:05.4]} 20... a5 {[%clk 0:00:47.4]} 21. Kh1 {[%clk 0:01:59.1]}
21... Nh5 {[%clk 0:00:46.4]} 22. Kg1 {[%clk 0:01:57.7]} 22... Ng3 {[%clk
0:00:45.2]} 23. c4 {[%clk 0:01:42.2]} 23... bxc4 {[%clk 0:00:40.9]} 24. bxc4
{[%clk 0:01:41.7]} 24... dxc4 {[%clk 0:00:40.2]} 25. Rxc4 {[%clk 0:01:41.4]}
25... Rxc4 {[%clk 0:00:28.3]} 26. Rxc4 {[%clk 0:01:40.9]} 26... Qd8 {[%clk
0:00:28.5]} 27. Rxc8 {[%clk 0:01:40.5]} 27... Qxc8 {[%clk 0:00:29.4]} 28. Kf2
{[%clk 0:01:40.8]} 28... Nf5 {[%clk 0:00:28.4]} 29. Qd3 {[%clk 0:01:34.2]} 29...
Qc7 {[%clk 0:00:26.8]} 30. Ne4 {[%clk 0:01:28.4]} 1-0

[Event "Late-Titled-Tuesday-Blitz-September-26-2023"]
[Site "Chess.com"]
[Date "2023.09.26"]
[Round "8"]
[White "DanielNaroditsky"]
[Black "moro182"]
[Result "1-0"]
[WhiteElo "3134"]
[BlackElo "2903"]
[TimeControl "180+1"]
[EndTime "15:23:42 PDT"]
[Termination "DanielNaroditsky won by resignation"]

1. e4 {[%clk 0:03:00.9]} 1... g6 {[%clk 0:02:59.8]} 2. d4 {[%clk 0:03:01]} 2...
Bg7 {[%clk 0:03:00.3]} 3. Nc3 {[%clk 0:03:01.7]} 3... a6 {[%clk 0:03:00.9]} 4.
f4 {[%clk 0:03:01.2]} 4... d5 {[%clk 0:03:01.1]} 5. e5 {[%clk 0:02:56.4]} 5...
h5 {[%clk 0:03:00.9]} 6. Bd3 {[%clk 0:02:49.4]} 6... Nh6 {[%clk 0:03:00.6]} 7.
Nf3 {[%clk 0:02:45]} 7... Bg4 {[%clk 0:03:00.1]} 8. O-O {[%clk 0:02:44.2]} 8...
e6 {[%clk 0:03:00.1]} 9. Ne2 {[%clk 0:02:43.2]} 9... h4 {[%clk 0:02:55.9]} 10.
h3 {[%clk 0:02:40.7]} 10... Bxf3 {[%clk 0:02:50.3]} 11. Rxf3 {[%clk 0:02:41.6]}
11... Nf5 {[%clk 0:02:50.7]} 12. c3 {[%clk 0:02:42]} 12... Nd7 {[%clk
0:02:50.2]} 13. Bxf5 {[%clk 0:02:40]} 13... gxf5 {[%clk 0:02:49.7]} 14. Be3
{[%clk 0:02:38.6]} 14... Bf8 {[%clk 0:02:47.2]} 15. Bf2 {[%clk 0:02:31.6]} 15...
Be7 {[%clk 0:02:46.8]} 16. Kh2 {[%clk 0:02:32.4]} 16... c6 {[%clk 0:02:44.5]}
17. Nc1 {[%clk 0:02:28.4]} 17... Qc7 {[%clk 0:02:43.3]} 18. Nd3 {[%clk
0:02:28.7]} 18... c5 {[%clk 0:02:39.5]} 19. dxc5 {[%clk 0:02:19.5]} 19... Nxc5
{[%clk 0:02:40.4]} 20. Nxc5 {[%clk 0:02:18]} 20... Bxc5 {[%clk 0:02:41.3]} 21.
Bd4 {[%clk 0:02:07]} 21... O-O-O {[%clk 0:02:33.6]} 22. b4 {[%clk 0:02:07.5]}
22... Bxd4 {[%clk 0:02:32.3]} 23. cxd4 {[%clk 0:02:07.8]} 23... Kb8 {[%clk
0:02:30.6]} 24. b5 {[%clk 0:02:04.4]} 24... a5 {[%clk 0:02:27.5]} 25. b6 {[%clk
0:02:03.3]} 25... Qxb6 {[%clk 0:02:05.3]} 26. Rb1 {[%clk 0:02:02.8]} 26... Qa6
{[%clk 0:01:47.1]} 27. Rfb3 {[%clk 0:02:01.5]} 27... Rd7 {[%clk 0:01:46.8]} 28.
Rb6 {[%clk 0:01:40.5]} 28... Qc4 {[%clk 0:01:43.8]} 29. Qd2 {[%clk 0:01:12.9]}
29... Rc7 {[%clk 0:01:32.4]} 30. Qb2 {[%clk 0:01:04.8]} 30... Kc8 {[%clk
0:01:05.7]} 31. Rxb7 {[%clk 0:01:04]} 31... Kd7 {[%clk 0:00:59.6]} 32. Qa3
{[%clk 0:00:47.8]} 32... Qc6 {[%clk 0:00:44]} 33. R7b6 {[%clk 0:00:46.2]} 1-0

[Event "Late-Titled-Tuesday-Blitz-September-26-2023"]
[Site "Chess.com"]
[Date "2023.09.26"]
[Round "8"]
[White "RCone"]
[Black "FMVolodymyrSakun"]
[Result "0-1"]
[WhiteElo "2431"]
[BlackElo "2653"]
[TimeControl "180+1"]
[EndTime "15:23:44 PDT"]
[Termination "FMVolodymyrSakun won on time"]

1. e4 {[%clk 0:03:00.1]} 1... c5 {[%clk 0:02:56.7]} 2. Nc3 {[%clk 0:02:59.5]}
2... Nc6 {[%clk 0:02:55.4]} 3. Bb5 {[%clk 0:02:58.8]} 3... g6 {[%clk 0:02:53.7]}
4. Bxc6 {[%clk 0:02:55.9]} 4... dxc6 {[%clk 0:02:54.6]} 5. d3 {[%clk 0:02:56]}
5... Bg7 {[%clk 0:02:54.2]} 6. f4 {[%clk 0:02:55.7]} 6... e5 {[%clk 0:02:51.1]}
7. h3 {[%clk 0:02:48.6]} 7... Qh4+ {[%clk 0:02:49]} 8. Kf1 {[%clk 0:02:48.4]}
8... exf4 {[%clk 0:02:46.6]} 9. Nf3 {[%clk 0:02:39.4]} 9... Qe7 {[%clk
0:02:44.3]} 10. Bxf4 {[%clk 0:02:37.8]} 10... Nf6 {[%clk 0:02:42.1]} 11. Qd2
{[%clk 0:02:29.2]} 11... Nh5 {[%clk 0:02:37.9]} 12. Bh2 {[%clk 0:02:22.6]} 12...
O-O {[%clk 0:02:33.4]} 13. g4 {[%clk 0:02:20.1]} 13... Nf6 {[%clk 0:02:33]} 14.
Kg2 {[%clk 0:02:19.8]} 14... Be6 {[%clk 0:02:22.8]} 15. b3 {[%clk 0:02:06.3]}
15... h5 {[%clk 0:02:21.9]} 16. g5 {[%clk 0:02:02.7]} 16... Nd7 {[%clk
0:02:13.9]} 17. Rae1 {[%clk 0:01:56.7]} 17... f6 {[%clk 0:01:51.3]} 18. Rhf1
{[%clk 0:01:48.4]} 18... fxg5 {[%clk 0:01:48.9]} 19. Nxg5 {[%clk 0:01:46.9]}
19... Bxc3 {[%clk 0:01:48]} 20. Qxc3 {[%clk 0:01:08.3]} 20... Qxg5+ {[%clk
0:01:45.8]} 21. Kh1 {[%clk 0:01:07.7]} 21... Bxh3 {[%clk 0:01:18.7]} 22. Rg1
{[%clk 0:01:01.1]} 22... Bg4 {[%clk 0:01:13.5]} 23. Qc4+ {[%clk 0:00:48.1]}
23... Kh7 {[%clk 0:01:10.1]} 24. e5 {[%clk 0:00:48.1]} 24... Bf3+ {[%clk
0:01:08.7]} 0-1

[Event "Late-Titled-Tuesday-Blitz-September-26-2023"]
[Site "Chess.com"]
[Date "2023.09.26"]
[Round "8"]
[White "aranibos"]
[Black "NigelDwarf"]
[Result "1/2-1/2"]
[WhiteElo "2281"]
[BlackElo "2515"]
[TimeControl "180+1"]
[EndTime "15:23:50 PDT"]
[Termination "Game drawn by repetition"]

1. d4 {[%clk 0:03:00.9]} 1... Nf6 {[%clk 0:02:59.1]} 2. c3 {[%clk 0:03:00.7]}
2... g6 {[%clk 0:02:58.4]} 3. Bg5 {[%clk 0:03:01.1]} 3... Ne4 {[%clk 0:02:57.1]}
4. h4 {[%clk 0:02:58.6]} 4... c5 {[%clk 0:02:53.5]} 5. e3 {[%clk 0:02:57.6]}
5... Bg7 {[%clk 0:02:46.7]} 6. Bf4 {[%clk 0:02:49.9]} 6... Qb6 {[%clk
0:02:36.5]} 7. Qb3 {[%clk 0:02:48.5]} 7... d5 {[%clk 0:02:31.7]} 8. Bxb8 {[%clk
0:02:45.1]} 8... Rxb8 {[%clk 0:02:29.3]} 9. Bb5+ {[%clk 0:02:45.6]} 9... Kf8
{[%clk 0:02:19.9]} 10. Be2 {[%clk 0:02:27.5]} 10... c4 {[%clk 0:02:13.2]} 11.
Qxb6 {[%clk 0:02:26.6]} 11... axb6 {[%clk 0:02:14.1]} 12. Nd2 {[%clk 0:02:25.1]}
12... Nd6 {[%clk 0:02:10]} 13. h5 {[%clk 0:02:24.5]} 13... b5 {[%clk 0:01:57.7]}
14. a3 {[%clk 0:02:23.8]} 14... Bd7 {[%clk 0:01:52.7]} 15. h6 {[%clk 0:02:22.1]}
15... Bf6 {[%clk 0:01:51.9]} 16. g4 {[%clk 0:02:14.6]} 16... Nc8 {[%clk
0:01:43.1]} 17. f4 {[%clk 0:02:12.8]} 17... e6 {[%clk 0:01:41.5]} 18. g5 {[%clk
0:02:10.2]} 18... Be7 {[%clk 0:01:41.2]} 19. e4 {[%clk 0:02:10.7]} 19... Nb6
{[%clk 0:01:40.6]} 20. Ngf3 {[%clk 0:02:03.2]} 20... Na4 {[%clk 0:01:36.6]} 21.
Rb1 {[%clk 0:02:03.4]} 21... Bd6 {[%clk 0:01:34]} 22. Ne5 {[%clk 0:01:57.7]}
22... Ke7 {[%clk 0:01:32.8]} 23. exd5 {[%clk 0:01:55.6]} 23... exd5 {[%clk
0:01:32]} 24. Bf3 {[%clk 0:01:56.1]} 24... Bf5 {[%clk 0:01:26.7]} 25. Bxd5
{[%clk 0:01:50.1]} 25... Bxe5 {[%clk 0:01:23.7]} 26. fxe5 {[%clk 0:01:46.2]}
26... Bxb1 {[%clk 0:01:22.2]} 27. Nxb1 {[%clk 0:01:46.5]} 27... Nxb2 {[%clk
0:01:21.6]} 28. O-O {[%clk 0:01:47.1]} 28... Rhf8 {[%clk 0:01:19.4]} 29. Nd2
{[%clk 0:01:39.3]} 29... Na4 {[%clk 0:01:16.7]} 30. Ne4 {[%clk 0:01:38.7]} 30...
Nb6 {[%clk 0:01:05.3]} 31. Nf6 {[%clk 0:01:38.5]} 31... Nxd5 {[%clk 0:00:55.5]}
32. Nxd5+ {[%clk 0:01:38.7]} 32... Kd7 {[%clk 0:00:56.2]} 33. Rf6 {[%clk
0:01:35.8]} 33... Ra8 {[%clk 0:00:44.8]} 34. Nb6+ {[%clk 0:01:34.6]} 34... Ke7
{[%clk 0:00:45.4]} 35. Nxa8 {[%clk 0:01:21.2]} 35... Rxa8 {[%clk 0:00:46.3]} 36.
Rb6 {[%clk 0:01:21.1]} 36... Rxa3 {[%clk 0:00:45.9]} 37. Rxb7+ {[%clk
0:01:21.2]} 37... Ke6 {[%clk 0:00:44.8]} 38. Rxb5 {[%clk 0:01:20.9]} 38... Rxc3
{[%clk 0:00:43.7]} 39. Rb6+ {[%clk 0:01:19.4]} 39... Ke7 {[%clk 0:00:42.8]} 40.
d5 {[%clk 0:01:17.8]} 40... Rg3+ {[%clk 0:00:38.2]} 41. Kf2 {[%clk 0:01:18.2]}
41... Rxg5 {[%clk 0:00:38.3]} 42. Rb7+ {[%clk 0:01:17.9]} 42... Ke8 {[%clk
0:00:36.3]} 43. Rb8+ {[%clk 0:01:15.3]} 43... Ke7 {[%clk 0:00:36.3]} 44. Rb7+
{[%clk 0:01:15.7]} 44... Ke8 {[%clk 0:00:33.6]} 45. Rb8+ {[%clk 0:01:15.6]}
45... Ke7 {[%clk 0:00:33.5]} 46. Rb7+ {[%clk 0:01:15.9]} 1/2-1/2

[Event "Late-Titled-Tuesday-Blitz-September-26-2023"]
[Site "Chess.com"]
[Date "2023.09.26"]
[Round "8"]
[White "JG-17"]
[Black "ChristopherYoo"]
[Result "0-1"]
[WhiteElo "2530"]
[BlackElo "2990"]
[TimeControl "180+1"]
[EndTime "15:23:56 PDT"]
[Termination "ChristopherYoo won by resignation"]

1. e4 {[%clk 0:03:00.9]} 1... Nc6 {[%clk 0:02:59]} 2. Nc3 {[%clk 0:03:00.5]}
2... Nf6 {[%clk 0:02:59.3]} 3. d4 {[%clk 0:02:59.2]} 3... d6 {[%clk 0:02:59.6]}
4. Nf3 {[%clk 0:02:58.3]} 4... Bg4 {[%clk 0:02:59.2]} 5. Be2 {[%clk 0:02:57]}
5... e5 {[%clk 0:02:53.7]} 6. dxe5 {[%clk 0:02:55.2]} 6... dxe5 {[%clk
0:02:44.4]} 7. O-O {[%clk 0:02:51.5]} 7... Bxf3 {[%clk 0:02:43.1]} 8. Bxf3
{[%clk 0:02:50.2]} 8... Nd4 {[%clk 0:02:43.6]} 9. Be3 {[%clk 0:02:45.6]} 9...
Bc5 {[%clk 0:02:42.5]} 10. Na4 {[%clk 0:02:21.9]} 10... Nxf3+ {[%clk 0:02:37.8]}
11. Qxf3 {[%clk 0:02:22.8]} 11... Bxe3 {[%clk 0:02:38.2]} 12. Qxe3 {[%clk
0:02:23.7]} 12... O-O {[%clk 0:02:37.1]} 13. Rad1 {[%clk 0:02:10.5]} 13... Qe7
{[%clk 0:02:33.3]} 14. Nc3 {[%clk 0:01:54.7]} 14... c6 {[%clk 0:02:30.2]} 15. a3
{[%clk 0:01:50.3]} 15... b5 {[%clk 0:02:19.7]} 16. Rd2 {[%clk 0:01:25.4]} 16...
a5 {[%clk 0:02:19.7]} 17. Rfd1 {[%clk 0:01:19]} 17... b4 {[%clk 0:02:20.2]} 18.
axb4 {[%clk 0:01:19.9]} 18... axb4 {[%clk 0:02:20.4]} 19. Ne2 {[%clk 0:01:20.3]}
19... Ra2 {[%clk 0:02:21.1]} 20. Qb3 {[%clk 0:01:13.9]} 20... Rfa8 {[%clk
0:02:19.5]} 21. f3 {[%clk 0:01:11.6]} 21... Qc5+ {[%clk 0:02:18.4]} 22. Kf1
{[%clk 0:01:08.5]} 22... g6 {[%clk 0:02:18.1]} 23. Rd8+ {[%clk 0:01:07.1]} 23...
Kg7 {[%clk 0:02:17.9]} 24. Nc1 {[%clk 0:00:53.4]} 24... Rxd8 {[%clk 0:02:14.5]}
25. Rxd8 {[%clk 0:00:49.5]} 25... Ra1 {[%clk 0:02:14.7]} 26. Rd1 {[%clk
0:00:47.2]} 26... Ne8 {[%clk 0:01:49.1]} 27. Qd3 {[%clk 0:00:47.2]} 27... Nd6
{[%clk 0:01:23.4]} 28. Nb3 {[%clk 0:00:46.5]} 28... Rxd1+ {[%clk 0:01:22.9]} 29.
Qxd1 {[%clk 0:00:47.4]} 29... Qb5+ {[%clk 0:01:23.1]} 30. Qe2 {[%clk 0:00:45.4]}
30... Nc4 {[%clk 0:01:22.3]} 31. Ke1 {[%clk 0:00:30.3]} 31... Kf6 {[%clk
0:01:18.8]} 32. Qd3 {[%clk 0:00:23.3]} 32... Ke7 {[%clk 0:01:18.3]} 33. g3
{[%clk 0:00:09]} 33... Nxb2 {[%clk 0:01:15.3]} 34. Qxb5 {[%clk 0:00:09]} 34...
cxb5 {[%clk 0:01:16.2]} 35. Kd2 {[%clk 0:00:07.2]} 35... Kd6 {[%clk 0:01:15.8]}
36. Na5 {[%clk 0:00:04.8]} 36... Nc4+ {[%clk 0:01:15.7]} 37. Nxc4+ {[%clk
0:00:05.2]} 37... bxc4 {[%clk 0:01:16.6]} 0-1

[Event "Late-Titled-Tuesday-Blitz-September-26-2023"]
[Site "Chess.com"]
[Date "2023.09.26"]
[Round "8"]
[White "Javylavilla"]
[Black "scandalgod"]
[Result "0-1"]
[WhiteElo "2337"]
[BlackElo "2497"]
[TimeControl "180+1"]
[EndTime "15:23:56 PDT"]
[Termination "scandalgod won by resignation"]

1. e4 {[%clk 0:03:00.9]} 1... e5 {[%clk 0:02:59.4]} 2. Nf3 {[%clk 0:03:00.6]}
2... Nc6 {[%clk 0:02:55.4]} 3. Bb5 {[%clk 0:03:01.1]} 3... a6 {[%clk 0:02:49.7]}
4. Ba4 {[%clk 0:03:01]} 4... d6 {[%clk 0:02:49.9]} 5. Bxc6+ {[%clk 0:02:59.2]}
5... bxc6 {[%clk 0:02:49.6]} 6. d4 {[%clk 0:02:59.6]} 6... f6 {[%clk 0:02:49.7]}
7. Nc3 {[%clk 0:02:57.5]} 7... Ne7 {[%clk 0:02:49.3]} 8. h4 {[%clk 0:02:57.5]}
8... Bg4 {[%clk 0:02:46.8]} 9. h5 {[%clk 0:02:54.2]} 9... Qd7 {[%clk 0:02:44.3]}
10. Be3 {[%clk 0:02:53.6]} 10... exd4 {[%clk 0:02:38.7]} 11. Qxd4 {[%clk
0:02:49.2]} 11... c5 {[%clk 0:02:38.3]} 12. Qd2 {[%clk 0:02:45.3]} 12... Bxf3
{[%clk 0:02:35.4]} 13. gxf3 {[%clk 0:02:44.6]} 13... Rb8 {[%clk 0:02:35.4]} 14.
O-O-O {[%clk 0:02:42]} 14... Qc6 {[%clk 0:02:27.5]} 15. Rhg1 {[%clk 0:02:37.1]}
15... Kf7 {[%clk 0:02:15.3]} 16. f4 {[%clk 0:02:30.2]} 16... Qb6 {[%clk
0:02:09.7]} 17. b3 {[%clk 0:02:29.6]} 17... Qa5 {[%clk 0:02:09.7]} 18. f5 {[%clk
0:02:26.8]} 18... Qb4 {[%clk 0:01:39.1]} 19. Ne2 {[%clk 0:02:00.1]} 19... Qxd2+
{[%clk 0:01:30.1]} 20. Rxd2 {[%clk 0:01:58.5]} 20... Nc6 {[%clk 0:01:29.3]} 21.
Nf4 {[%clk 0:01:57.8]} 21... Ne5 {[%clk 0:01:20.8]} 22. Rg3 {[%clk 0:01:57.4]}
22... Rg8 {[%clk 0:01:09.5]} 23. Ne6 {[%clk 0:01:54.4]} 23... Rc8 {[%clk
0:01:05.7]} 24. f4 {[%clk 0:01:53.4]} 24... Nc6 {[%clk 0:01:02.5]} 25. Rdg2
{[%clk 0:01:53.2]} 25... Ne7 {[%clk 0:01:00.5]} 26. c4 {[%clk 0:01:22.8]} 26...
g6 {[%clk 0:01:00.5]} 27. hxg6+ {[%clk 0:01:21.2]} 27... hxg6 {[%clk 0:01:00.7]}
28. Rh3 {[%clk 0:01:18.6]} 28... gxf5 {[%clk 0:00:45]} 29. Rxg8 {[%clk 0:01:14]}
29... Kxg8 {[%clk 0:00:35]} 30. exf5 {[%clk 0:01:10.4]} 30... Nxf5 {[%clk
0:00:35]} 31. Nxf8 {[%clk 0:01:10.2]} 31... Rxf8 {[%clk 0:00:31.8]} 32. Bf2
{[%clk 0:01:07.5]} 32... Kf7 {[%clk 0:00:30.8]} 33. Rh7+ {[%clk 0:01:06.8]}
33... Ng7 {[%clk 0:00:30.9]} 34. Bh4 {[%clk 0:01:05.4]} 34... Kg6 {[%clk
0:00:28.7]} 35. Rxg7+ {[%clk 0:01:04.2]} 35... Kxg7 {[%clk 0:00:28.6]} 36. Kd2
{[%clk 0:01:04.9]} 36... Kg6 {[%clk 0:00:29]} 37. Ke3 {[%clk 0:01:05.8]} 37...
Kf5 {[%clk 0:00:29.6]} 38. Bf2 {[%clk 0:01:05.9]} 38... Re8+ {[%clk 0:00:29.4]}
39. Kf3 {[%clk 0:01:06.7]} 39... Re4 {[%clk 0:00:29.7]} 40. Be3 {[%clk
0:01:07.3]} 40... Re8 {[%clk 0:00:30.1]} 41. Bd2 {[%clk 0:01:07.4]} 41... Rh8
{[%clk 0:00:30.7]} 42. Bc3 {[%clk 0:01:07.8]} 42... Rh3+ {[%clk 0:00:31]} 0-1